bitfinex-derivatives/quotes_ETHF0:USTF0_20250612
["timestamp","ask_amount","ask_price","bid_price","bid_amount"]
[1749687901759,5.94827,2781.0,2780.8,3.2078]
[1749687902563,0.71899,2780.9,2780.8,3.2078]
[1749687902765,0.71904,2780.7,2780.6,0.00538996]
[1749687903467,1.99274,2780.7,2780.6,0.00538996]
[1749687904469,2.27844,2780.7,2780.6,0.00538996]
[1749687904661,8.35703,2780.7,2780.0,3.2078]
[1749687904862,0.71918,2780.2,2780.0,3.2078]
[1749687905064,0.71916,2780.3,2780.1,0.71919]
[1749687905368,5.33018,2780.2,2780.0,3.2078]
[1749687905563,0.5915,2780.5,2780.0,3.2078]
[1749687905564,4.611,2780.1,2780.0,3.2078]
[1749687905770,4.612,2780.1,2780.0,3.92703]
[1749687906069,1.31061,2780.5,2780.0,3.2078]
[1749687906264,0.5915,2780.5,2780.0,4.455]
[1749687906466,0.2857,2780.7,2780.4,3.2078]
[1749687906766,0.71907,2780.6,2780.5,0.6099]
[1749687907869,1.00476,2780.7,2780.5,1.329]
[1749687908164,5.61676,2780.7,2780.5,1.32898]
[1749687908368,0.71907,2780.6,2780.5,2.59728]
[1749687908770,0.71907,2780.6,2780.5,1.8782]
[1749687908964,4.8977,2780.7,2780.6,0.71907]
[1749687908965,0.2857,2780.7,2780.6,0.71907]
[1749687909161,0.2857,2780.7,2780.6,1.33127]
[1749687909874,1.00474,2780.7,2780.6,0.6122]
[1749687910673,4.8977,2780.7,2780.6,1.33127]
[1749687910873,0.2857,2780.7,2780.6,2.53227]
[1749687911072,0.00538996,2781.1,2780.6,6.8132]
[1749687911271,0.00538996,2781.1,2781.0,3.92677]
[1749687911774,0.00538996,2781.1,2781.0,8.2078]
[1749687911970,0.72432996,2781.1,2781.0,3.8094]
[1749687912374,0.00538996,2781.1,2781.0,4.52837]
[1749687912671,0.72432996,2781.1,2781.0,4.52837]
[1749687913370,0.00538996,2781.1,2781.0,4.52837]
[1749687914168,0.72432996,2781.1,2781.0,4.52837]
[1749687914373,0.72432996,2781.1,2781.0,3.8094]
[1749687914775,0.72432996,2781.1,2781.0,4.52837]
[1749687914776,0.00538996,2781.1,2781.0,4.52837]
[1749687915868,0.00538996,2781.1,2781.0,5.73447]
[1749687916074,0.00538996,2781.1,2781.0,10.73447]
[1749687917570,0.00538996,2781.1,2781.0,5.73447]
[1749687918467,0.00538996,2781.1,2781.0,7.87843331]
[1749687919478,0.00538996,2781.1,2781.0,5.73447]
[1749687920666,0.00538996,2781.1,2781.0,4.52837]
[1749687921176,0.00538996,2781.1,2781.0,7.89893331]
[1749687921377,0.7188,2781.8,2781.7,0.71876]
[1749687921678,0.7188,2781.8,2781.7,3.2078]
[1749687921875,0.71891,2781.4,2781.3,3.2078]
[1749687922473,0.72420996,2781.6,2781.5,0.71884]
[1749687922680,0.00538996,2781.6,2781.5,0.71884]
[1749687925684,0.00538996,2781.6,2781.5,1.35644]
[1749687926179,0.00538996,2781.6,2781.5,2.58804]
[1749687926378,0.00538996,2781.6,2781.5,1.35644]
[1749687927277,0.00538996,2781.6,2781.5,2.58804]
[1749687927478,0.5388,2781.9,2781.8,0.71876]
[1749687927782,0.5388,2781.9,2781.8,3.92656]
[1749687928379,0.5388,2781.9,2781.8,5.13236]
[1749687929779,1.25753,2781.9,2781.8,3.92656]
[1749687930081,1.25753,2781.9,2781.8,3.2078]
[1749687930488,1.79698,2781.7,2781.4,3.2078]
[1749687930689,0.71884,2781.5,2781.4,3.2078]
[1749687930885,0.71884,2781.5,2781.4,3.92666]
[1749687931085,0.71884,2781.5,2781.4,3.2078]
[1749687931388,1.96793,2781.6,2781.4,3.2078]
[1749687931688,0.71884,2781.5,2781.4,3.2078]
[1749687931987,1.92564,2781.5,2781.4,3.2078]
[1749687932490,1.2068,2781.5,2781.4,3.92666]
[1749687933589,1.92564,2781.5,2781.4,3.92666]
[1749687933784,1.92564,2781.5,2781.4,3.2078]
[1749687935290,6.92564,2781.5,2781.4,3.2078]
[1749687937786,1.92564,2781.5,2781.4,3.2078]
[1749687937991,0.71883,2781.6,2781.5,0.71884]
[1749687938188,0.71884,2781.5,2781.4,3.92665]
[1749687938389,3.04812,2781.8,2781.4,3.92665]
[1749687938590,0.71884,2781.5,2781.4,3.2078]
[1749687941493,1.2319,2781.9,2781.8,0.71876]
[1749687941698,1.2319,2781.9,2781.8,3.2078]
[1749687941991,0.5934,2781.9,2781.8,3.92656]
[1749687942191,0.00538996,2782.1,2782.0,0.71871]
[1749687942695,0.00538996,2782.1,2781.9,0.71871]
[1749687942895,0.72407996,2782.1,2781.9,0.71871]
[1749687943096,0.71872,2782.0,2781.8,5.34577618]
[1749687943396,0.71873,2781.9,2781.8,6.06453618]
[1749687943598,0.71873,2782.0,2781.8,6.06453618]
[1749687943893,0.71873,2782.0,2781.9,0.71873]
[1749687944196,0.54398996,2782.1,2782.0,0.71871]
[1749687944502,0.71873,2781.9,2781.8,5.34577618]
[1749687944796,0.71873,2781.9,2781.8,3.2078]
[1749687945193,0.71873,2781.9,2781.8,3.92656]
[1749687945393,0.71873,2782.0,2781.9,0.71872]
[1749687945792,0.71873,2781.9,2781.8,3.92654]
[1749687946298,0.71873,2781.9,2781.8,3.2078]
[1749687946895,0.71873,2781.9,2781.8,3.92656]
[1749687947498,0.71873,2782.0,2781.9,0.71872]
[1749687948089,1.26268996,2782.1,2782.0,0.71871]
[1749687948899,0.71872,2782.0,2781.9,0.71871]
[1749687949396,9.586,2782.0,2781.4,2.13797618]
[1749687949592,0.71907,2780.6,2780.5,5.34577618]
[1749687949895,1.79736,2781.1,2780.5,3.2078]
[1749687950096,0.71905,2780.7,2780.5,3.2078]
[1749687950296,1.778,2781.0,2780.5,3.2078]
[1749687950496,0.71905,2780.7,2780.5,0.00538996]
[1749687950790,0.71907,2780.6,2780.5,0.00538996]
[1749687951096,0.71906,2780.7,2780.5,0.00538996]
[1749687951400,0.71906,2780.7,2780.5,0.72447996]
[1749687951599,0.71907,2780.6,2780.5,0.00538996]
[1749687952093,10.00552,2780.6,2780.1,0.5978]
[1749687952288,0.71928,2779.8,2779.7,3.2078]
[1749687953003,0.71935,2779.5,2779.4,3.8075]
[1749687954098,0.00538996,2780.0,2779.4,10.60591]
[1749687954294,0.00538996,2780.0,2779.9,0.71925]
[1749687954497,0.72461996,2780.0,2779.9,0.71925]
[1749687955004,0.72461996,2780.0,2779.8,0.71925]
[1749687955200,0.72461996,2780.0,2779.9,0.71925]
[1749687955504,0.00538996,2780.0,2779.9,0.71925]
[1749687956399,0.00538996,2780.0,2779.9,5.71925]
[1749687956695,0.6036,2780.8,2780.1,1.79801]
[1749687956895,3.2078,2781.2,2780.6,3.2078]
[1749687957104,3.2078,2781.2,2780.7,3.01162]
[1749687957297,3.92673,2781.2,2781.0,0.71896]
[1749687957494,3.92673,2781.2,2781.1,0.6256]
[1749687958498,3.92673,2781.2,2781.1,1.34454]
[1749687958706,3.92673,2781.2,2781.1,0.6256]
[1749687959306,3.92673,2781.2,2781.1,1.34454]
[1749687960004,3.92673,2781.2,2781.1,0.6256]
[1749687960394,3.2078,2781.2,2781.1,1.34454]
[1749687960602,0.5389,2781.3,2781.2,0.71891]
[1749687960799,0.5389,2781.3,2781.2,2.00521]
[1749687960999,0.5389,2781.3,2781.2,7.00521]
[1749687962509,0.5389,2781.3,2781.2,2.00521]
[1749687962904,0.5389,2781.3,2781.1,3.8334]
[1749687963210,0.5389,2781.3,2781.2,0.71892]
[1749687963405,0.5389,2781.3,2781.2,1.93182]
[1749687963803,0.1874,2781.8,2781.4,1.79716]
[1749687964104,3.92652,2782.0,2781.9,0.71873]
[1749687964909,3.2078,2782.0,2781.9,0.71873]
[1749687966100,0.71876,2781.9,2781.8,0.71874]
[1749687966302,3.92652,2782.0,2781.9,0.71873]
[1749687966503,3.2078,2782.0,2781.9,0.71873]
[1749687966912,3.92651,2782.0,2781.9,0.71873]
[1749687967211,3.92651,2782.0,2781.7,0.6019]
[1749687967212,0.71876,2781.9,2781.8,0.71875]
[1749687967510,3.92653,2782.0,2781.9,0.71873]
[1749687967714,3.2078,2782.0,2781.9,0.71873]
[1749687968600,0.71876,2781.8,2781.7,0.6019]
[1749687968811,0.71876,2781.8,2781.6,0.6464]
[1749687968812,0.71875,2781.9,2781.8,0.71873]
[1749687969003,0.71875,2781.9,2781.5,1.79709]
[1749687969004,1.2072,2781.9,2781.4,9.66094]
[1749687969307,3.2078,2782.0,2781.9,0.71873]
[1749687969504,0.00538996,2782.2,2782.1,0.71868]
[1749687970405,3.8208,2783.2,2783.1,0.71842]
[1749687971513,4.5392,2783.2,2783.1,0.71842]
[1749687971705,3.8208,2783.2,2783.1,0.71842]
[1749687972209,1.7913,2783.2,2783.1,0.71842]
[1749687972512,2.5097,2783.2,2783.1,0.71842]
[1749687972712,1.7913,2783.2,2782.9,0.63168996]
[1749687972906,1.7913,2783.2,2783.1,0.71842]
[1749687973409,2.5097,2783.2,2783.1,0.71842]
[1749687973709,0.71845,2783.1,2783.0,0.71843]
[1749687973914,1.2636,2783.1,2783.0,0.71845]
[1749687974118,0.00538996,2783.4,2783.3,0.71837]
[1749687974310,0.72373996,2783.4,2783.3,0.71837]
[1749687974507,0.71839,2783.3,2783.2,0.71838]
[1749687974708,0.71841,2783.2,2783.1,0.7184]
[1749687974912,1.98201,2783.2,2783.1,0.7184]
[1749687975111,1.2636,2783.2,2783.0,0.71842]
[1749687975309,1.2636,2783.2,2783.1,0.71842]
[1749687975509,1.98202,2783.2,2783.1,0.71842]
[1749687975914,1.2636,2783.2,2783.1,0.71842]
[1749687976316,1.2636,2783.2,2782.9,3.83948996]
[1749687976512,1.982,2783.2,2783.1,0.71842]
[1749687977313,0.00538996,2783.4,2783.0,1.79613]
[1749687977514,0.00538996,2783.4,2783.3,0.71837]
[1749687978715,0.72373996,2783.4,2783.3,0.71837]
[1749687978917,0.71841,2783.3,2783.2,0.71838]
[1749687979105,0.00538996,2783.4,2782.9,2.42786996]
[1749687979106,0.00538996,2783.4,2783.3,0.71837]
[1749687979416,0.72373996,2783.4,2783.3,0.71837]
[1749687979616,0.7184,2783.3,2783.2,0.71838]
[1749687982221,0.71843,2783.2,2783.1,0.7184]
[1749687982715,0.00538996,2783.4,2783.2,0.71837]
[1749687982716,0.71838,2783.3,2783.2,0.71837]
[1749687987113,0.71845,2783.1,2783.0,0.71843]
[1749687987321,0.71845,2783.1,2783.0,0.71845]
[1749687988720,0.71845,2783.0,2782.9,0.00538996]
[1749687989816,5.37145,2783.0,2782.9,0.00538996]
[1749687990323,5.37145,2783.0,2782.9,0.72386996]
[1749687991117,0.71845,2783.0,2782.9,0.72386996]
[1749687991335,3.817,2783.2,2783.1,0.71842]
[1749687991336,3.2078,2783.2,2783.1,0.71842]
[1749687991616,3.9262,2783.2,2783.1,0.71842]
[1749687991819,3.2078,2783.2,2782.9,0.72384996]
[1749687992025,0.71845,2783.0,2782.9,0.72384996]
[1749687993121,3.2078,2783.2,2782.9,0.00538996]
[1749687993328,3.2078,2783.2,2783.1,0.71842]
[1749687993828,3.9262,2783.2,2783.1,0.71842]
[1749687994118,3.2078,2783.2,2783.1,0.71842]
[1749687995028,1.34734996,2783.4,2783.0,1.79611]
[1749687995322,0.00538996,2783.4,2783.3,0.71837]
[1749687995522,0.00538996,2783.4,2783.3,3.92617]
[1749687996620,0.00538996,2783.4,2783.3,5.12757]
[1749687997515,0.00538996,2783.4,2783.3,0.71837]
[1749687997720,0.72373996,2783.4,2783.3,0.71837]
[1749687998125,0.71842,2783.2,2783.1,0.7184]
[1749687998325,2.01089,2783.3,2783.2,0.7184]
[1749687998527,0.71839,2783.3,2783.2,0.7184]
[1749687998726,0.00538996,2783.4,2783.0,0.71842]
[1749687998727,0.71844,2783.1,2783.0,0.71842]
[1749687998929,0.71841,2783.2,2783.1,0.71839]
[1749687999329,0.72375996,2783.4,2783.3,0.71837]
[1749688000225,0.00538996,2783.4,2783.3,0.71837]
[1749688000831,0.71844,2783.2,2783.1,0.71841]
[1749688001135,0.72373996,2783.4,2783.3,0.71837]
[1749688001435,0.71844,2783.2,2783.1,0.71839]
[1749688003133,0.71845,2783.0,2782.9,0.72382996]
[1749688003636,0.71845,2783.0,2782.9,0.00538996]
[1749688004031,1.98535,2783.0,2782.9,0.00538996]
[1749688004338,1.79633,2782.7,2782.3,3.2078]
[1749688004530,0.71861,2782.4,2782.3,3.2078]
[1749688004830,1.8674,2782.6,2782.0,3.2078]
[1749688005032,1.8674,2782.6,2781.4,6.06406087]
[1749688005033,3.2078,2782.1,2781.4,6.06406087]
[1749688005228,1.79665,2782.2,2781.0,2.85626087]
[1749688005229,0.71894,2781.1,2781.0,2.85626087]
[1749688005424,0.71899,2780.9,2780.8,3.2078]
[1749688005629,1.2669,2781.0,2780.6,0.6157]
[1749688005831,1.98593,2780.8,2780.6,0.00538996]
[1749688006133,0.71904,2780.7,2780.6,0.00538996]
[1749688007536,0.71904,2780.7,2779.9,3.2078]
[1749688007537,0.71923,2780.0,2779.9,3.2078]
[1749688007732,0.71933,2779.6,2779.5,3.2078]
[1749688007926,5.8748,2779.9,2779.5,3.2078]
[1749688008325,0.71931,2779.7,2779.5,3.2078]
[1749688008529,1.79826,2779.7,2778.9,3.2078]
[1749688008733,0.71938,2779.4,2779.3,0.00538996]
[1749688009034,0.71957,2778.7,2778.5,3.2078]
[1749688009228,0.71957,2778.7,2778.1,3.2078]
[1749688009431,4.611,2779.0,2778.4,0.71963]
[1749688009631,0.71957,2778.7,2778.3,0.71965]
[1749688010036,1.2648,2778.9,2778.4,0.71964]
[1749688010237,0.71962,2778.5,2778.2,0.07558239]
[1749688010433,3.2078,2778.8,2778.2,0.07558239]
[1749688010630,0.71965,2778.4,2778.2,0.07558239]
[1749688010830,0.71967,2778.3,2778.2,0.07558239]
[1749688011027,1.96557,2778.3,2778.2,0.07558239]
[1749688013535,1.96557,2778.3,2778.2,0.00359334]
[1749688014430,1.79924,2778.2,2777.2,3.2078]
[1749688014739,0.71989,2777.5,2777.2,3.92774]
[1749688015041,1.2782,2777.4,2777.2,3.92774]
[1749688015236,1.99811,2777.4,2777.2,3.2078]
[1749688015438,1.2782,2777.4,2777.3,0.71992]
[1749688016038,3.21320005,2777.6,2777.5,0.71987]
[1749688016336,7.82820005,2777.6,2777.0,1.80001]
[1749688016542,0.00540005,2777.6,2777.5,0.71987]
[1749688016746,7.8228,2778.7,2778.5,0.71961]
[1749688016934,7.8228,2778.7,2777.5,4.615]
[1749688016935,0.71959,2778.6,2778.4,0.71963]
[1749688017138,9.0727,2778.7,2778.0,5.00712]
[1749688017331,7.8228,2778.7,2778.6,0.71959]
[1749688017634,3.2078,2778.7,2778.6,0.71959]
[1749688017935,0.00540005,2778.9,2778.8,0.71954]
[1749688018930,0.00540005,2778.9,2778.4,1.21360005]
[1749688018931,0.71961,2778.5,2778.4,0.00540005]
[1749688019336,3.2078,2778.7,2778.4,0.00540005]
[1749688019536,8.54336,2778.7,2778.6,0.71959]
[1749688019829,0.71961,2778.5,2778.4,0.72503005]
[1749688020040,0.71961,2778.5,2778.4,0.00540005]
[1749688021139,0.71979,2777.8,2777.7,3.2078]
[1749688021334,1.79943,2777.9,2777.2,0.71995]
[1749688021539,0.71993,2777.3,2777.1,3.2078]
[1749688021734,4.616,2777.6,2777.1,3.2078]
[1749688021941,0.71987,2777.5,2777.4,0.71989]
[1749688022137,0.7199,2777.4,2777.3,0.71991]
[1749688022341,0.7199,2777.4,2777.1,3.2078]
[1749688022543,4.616,2777.6,2776.8,3.8532]
[1749688022544,1.79969,2777.5,2776.8,3.8532]
[1749688022740,0.72013,2776.5,2776.4,3.2078]
[1749688022939,0.72015,2776.5,2776.3,0.72016]
[1749688023140,3.2078,2776.6,2776.2,0.7202]
[1749688023440,3.2078,2776.3,2775.7,1.2549]
[1749688023642,3.2078,2776.3,2775.6,3.2078]
[1749688023643,9.62532,2776.3,2775.6,3.2078]
[1749688023940,1.8006,2776.1,2775.4,0.72041]
[1749688024147,0.72034,2775.8,2775.7,0.0620172]
[1749688024538,3.2078,2776.0,2775.9,0.72029]
[1749688024839,7.9048,2776.0,2775.9,0.72029]
[1749688025038,4.697,2776.0,2775.9,0.72029]
[1749688025240,4.697,2776.0,2775.8,0.72031]
[1749688025440,4.697,2776.0,2775.4,3.2078]
[1749688025639,3.928,2776.3,2775.4,5.00884]
[1749688025843,3.2078,2776.3,2776.2,0.72021]
[1749688026043,0.2881,2776.4,2776.3,0.72018]
[1749688026641,0.2881,2776.4,2776.3,3.92798]
[1749688027953,0.2881,2776.4,2776.1,1.35972]
[1749688028138,0.7202,2776.3,2776.1,0.6395]
[1749688028445,0.72018,2776.4,2776.1,0.6395]
[1749688028650,3.2078,2776.6,2776.1,0.6395]
[1749688028854,3.2078,2776.6,2776.4,0.72014]
[1749688029046,3.2078,2776.6,2776.5,0.72013]
[1749688029346,0.00540005,2776.7,2776.6,0.72011]
[1749688029547,0.72012,2776.6,2776.4,3.2078]
[1749688029753,0.00540005,2776.7,2776.2,0.5928]
[1749688030046,1.30290005,2776.7,2776.2,0.5928]
[1749688030249,0.72549005,2776.7,2776.6,0.72011]
[1749688030443,0.72013,2776.6,2776.5,0.72013]
[1749688030645,0.7202,2776.3,2776.2,0.7202]
[1749688030955,5.41915,2776.5,2776.4,0.72015]
[1749688031251,0.72016,2776.4,2776.3,0.72016]
[1749688031454,5.41915,2776.5,2776.4,0.72016]
[1749688031749,3.2078,2776.6,2776.5,0.72013]
[1749688032055,0.29350005,2776.7,2776.6,0.72011]
[1749688032349,3.2078,2777.0,2776.9,0.72003]
[1749688032843,0.72002,2777.0,2776.7,1.2319]
[1749688033042,1.79975,2777.4,2776.9,0.72001]
[1749688033249,0.72002,2777.0,2776.9,0.72001]
[1749688033442,0.00540005,2777.2,2776.8,1.80014]
[1749688033637,0.00540005,2777.2,2777.1,0.71998]
[1749688033852,0.72535005,2777.2,2777.1,0.71998]
[1749688034047,0.72,2777.1,2777.0,0.71999]
[1749688034441,0.00540005,2777.2,2777.1,0.71998]
[1749688035543,0.00540005,2777.2,2777.0,0.71999]
[1749688035746,0.71999,2777.1,2777.0,0.71999]
[1749688035946,1.79995,2777.1,2776.4,0.00540005]
[1749688036152,0.72013,2776.6,2776.4,0.00540005]
[1749688036362,0.72013,2776.5,2776.4,0.00540005]
[1749688036650,1.98263,2776.5,2776.4,0.00540005]
[1749688036949,10.19043,2776.5,2776.4,0.00540005]
[1749688037445,5.19043,2776.5,2776.4,0.00540005]
[1749688038150,9.89043,2776.5,2776.4,0.00540005]
[1749688040747,9.89043,2776.5,2775.6,1.2329]
[1749688040748,1.8006,2776.1,2775.6,0.72034]
[1749688040942,1.2887,2776.0,2775.5,3.2078]
[1749688041147,4.7,2776.1,2775.5,3.2078]
[1749688041452,0.72032,2775.8,2775.7,0.72032]
[1749688041654,0.72031,2775.9,2775.8,0.72031]
[1749688041847,0.72032,2775.8,2775.7,0.72033]
[1749688042149,0.72029,2775.9,2775.8,0.7203]
[1749688042351,7.78932,2776.1,2775.6,0.7823772]
[1749688042547,0.72028,2776.0,2775.6,0.0620172]
[1749688042947,0.72028,2776.0,2775.6,1.3481172]
[1749688043153,0.72028,2776.0,2775.8,0.72029]
[1749688043349,0.72028,2776.0,2775.5,5.00877]
[1749688043350,0.72037,2775.6,2775.5,3.2078]
[1749688043546,0.72039,2775.5,2775.4,0.6102]
[1749688043748,0.00540005,2775.8,2775.4,0.6102]
[1749688043950,0.00540005,2775.8,2775.4,3.818]
[1749688044154,0.72573005,2775.8,2775.7,0.72034]
[1749688044354,0.72035,2775.7,2775.6,0.72035]
[1749688045054,0.72035,2775.7,2775.6,0.72034]
[1749688045451,0.72035,2775.7,2775.6,0.7823572]
[1749688046458,0.72039,2775.5,2775.4,0.6102]
[1749688046755,0.72039,2775.5,2775.4,1.33062]
[1749688047455,0.72038,2775.6,2775.5,0.72037]
[1749688048058,0.72039,2775.5,2775.4,0.6102]
[1749688048350,0.72061,2774.8,2774.7,3.2078]
[1749688048550,4.701,2774.8,2774.3,3.2078]
[1749688048950,0.72062,2774.7,2774.6,0.72061]
[1749688049346,0.72062,2774.7,2774.5,0.72063]
[1749688049655,0.7206,2774.7,2774.5,0.72063]
[1749688049852,4.701,2774.8,2774.4,1.2008]
[1749688050051,0.72065,2774.5,2774.4,1.2008]
[1749688050258,0.72066,2774.5,2774.3,3.2078]
[1749688050554,0.72068,2774.4,2774.3,3.2078]
[1749688051359,0.72076,2774.1,2774.0,3.2078]
[1749688051558,0.72081,2773.9,2773.7,3.2078]
[1749688051761,1.80185,2774.2,2773.7,3.92865]
[1749688051958,1.91056,2774.1,2773.9,0.7208]
[1749688052257,0.72076,2774.1,2774.0,0.72078]
[1749688052661,0.72082,2773.9,2773.8,0.72082]
[1749688052860,0.72079,2774.0,2773.9,0.72079]
[1749688053261,4.44150005,2774.3,2773.7,3.2078]
[1749688053463,0.72079,2774.0,2773.9,0.72079]
[1749688053659,0.72077,2774.1,2774.0,0.72077]
[1749688054055,0.72082,2773.9,2773.8,0.72081]
[1749688054564,0.72101,2773.1,2773.0,3.2078]
[1749688054756,4.737,2773.3,2772.7,3.2078]
[1749688055254,3.2078,2773.5,2772.7,5.01055]
[1749688055457,4.737,2773.7,2773.0,3.2078]
[1749688055760,7.9458,2773.8,2772.6,3.2078]
[1749688055959,3.2078,2773.4,2772.7,0.72111]
[1749688056160,0.72111,2772.8,2772.6,0.72113]
[1749688056363,0.7211,2772.8,2772.6,0.72113]
[1749688056658,3.2078,2773.1,2772.8,0.72107]
[1749688056854,0.72106,2773.0,2772.5,3.8348]
[1749688057059,0.00540989,2773.2,2772.5,3.8348]
[1749688057257,0.00540989,2773.2,2772.5,3.2078]
[1749688057258,0.72114,2772.6,2772.5,3.2078]
[1749688057464,0.72123,2772.3,2772.2,3.2078]
[1749688057657,1.2555,2772.8,2772.2,3.2078]
[1749688057862,3.2078,2773.0,2772.4,1.803]
[1749688058163,0.72107,2772.9,2772.8,0.72109]
[1749688058362,3.2078,2773.0,2772.5,1.1977]
[1749688058559,0.72116,2772.6,2772.5,0.72115]
[1749688058755,0.72124,2772.3,2772.0,6.0035]
[1749688058962,0.72121,2772.4,2772.3,0.72119]
[1749688059156,3.2078,2772.7,2772.1,1.80317]
[1749688059362,3.2078,2772.7,2772.6,0.72115]
[1749688060067,3.2078,2772.7,2772.2,1.2655]
[1749688060068,3.2078,2773.0,2772.8,0.72108]
[1749688060365,0.72108,2772.9,2772.8,0.72108]
[1749688060857,3.2078,2773.0,2772.4,3.06847]
[1749688061059,0.72118,2772.5,2772.4,0.72118]
[1749688061264,0.72116,2772.6,2772.5,0.72116]
[1749688061666,0.72116,2772.6,2771.7,1.2655]
[1749688061667,1.80313,2772.2,2771.6,3.2078]
[1749688061969,3.2078,2772.1,2772.0,0.7213]
[1749688062864,0.72132,2772.0,2771.9,0.72131]
[1749688063167,0.72135,2771.8,2771.7,0.6209]
[1749688063563,0.72133,2771.9,2771.8,0.72133]
[1749688064065,3.2078,2772.1,2772.0,0.7213]
[1749688064470,0.72128,2772.1,2772.0,0.7213]
[1749688064670,4.74,2772.3,2771.7,1.8263]
[1749688064871,0.7213,2772.1,2772.0,0.72129]
[1749688065071,0.72127,2772.2,2772.1,0.72126]
[1749688065271,0.7213,2772.1,2772.0,0.72129]
[1749688066272,1.80328,2772.0,2771.3,3.2078]
[1749688066468,0.72146,2771.4,2771.3,3.2078]
[1749688066664,0.72151,2771.3,2771.0,0.6133]
[1749688066977,0.72147,2771.4,2771.3,0.72147]
[1749688067172,0.7215,2771.3,2771.2,0.72149]
[1749688067476,3.2078,2771.5,2771.1,1.248]
[1749688067679,0.00540989,2771.6,2771.5,0.72143]
[1749688067874,0.00540989,2771.6,2771.2,3.2078]
[1749688068079,0.72149,2771.4,2771.3,0.72147]
[1749688068273,0.72149,2771.4,2770.4,25.41551]
[1749688068274,1.80378,2771.2,2770.6,3.2078]
[1749688068579,0.72172,2770.5,2770.4,0.72171]
[1749688068767,0.72172,2770.5,2770.3,3.2078]
[1749688068768,3.2078,2770.8,2770.3,3.2078]
[1749688068967,4.741,2770.9,2770.1,0.632]
[1749688068968,3.2078,2770.5,2770.1,0.632]
[1749688069173,3.2078,2770.5,2770.0,3.2078]
[1749688069174,0.7218,2770.1,2770.0,3.2078]
[1749688069477,3.2078,2770.5,2769.7,5.01256]
[1749688069677,0.72176,2770.3,2770.1,0.72178]
[1749688069876,0.00540989,2770.4,2770.3,0.72174]
[1749688070376,0.5413,2770.7,2770.6,0.72167]
[1749688070581,0.5413,2770.7,2770.6,3.92947]
[1749688070786,0.5413,2770.7,2770.6,8.92947]
[1749688071578,0.00540989,2770.9,2770.8,0.72161]
[1749688073881,26.558,2771.6,2771.0,1.80391]
[1749688074085,26.558,2771.6,2771.1,3.2078]
[1749688074086,0.72151,2771.2,2771.1,3.2078]
[1749688074289,0.72165,2770.7,2770.6,0.72165]
[1749688074591,0.72161,2770.9,2770.4,3.21320989]
[1749688074777,0.72161,2770.9,2770.8,0.72161]
[1749688075087,0.72159,2770.9,2770.8,0.72161]
[1749688075289,0.7216,2770.9,2770.8,0.72161]
[1749688075585,0.72162,2770.8,2770.7,0.72162]
[1749688076178,1.22310989,2771.1,2770.7,0.72164]
[1749688076379,0.72161,2770.8,2770.7,0.72164]
[1749688076579,0.7216,2770.9,2770.8,0.72159]
[1749688077178,0.72162,2770.8,2770.7,0.72162]
[1749688077381,0.7216,2770.9,2770.8,0.7216]
[1749688077577,1.22310989,2771.1,2770.4,3.21320989]
[1749688077791,0.72164,2770.8,2770.7,0.72163]
[1749688078092,0.72165,2770.7,2770.6,0.72165]
[1749688078386,5.01178,2770.9,2770.4,0.00540989]
[1749688078576,0.72167,2770.6,2770.5,0.72169]
[1749688078780,0.72167,2770.7,2770.6,0.72167]
[1749688078981,6.0251,2770.8,2770.4,0.00540989]
[1749688079288,0.72169,2770.5,2770.4,0.00540989]
[1749688079685,0.72169,2770.6,2770.4,0.00540989]
[1749688079981,0.72165,2770.7,2770.4,0.00540989]
[1749688080180,3.2078,2770.9,2770.4,0.00540989]
[1749688080379,0.72169,2770.5,2770.4,0.00540989]
[1749688080581,0.72189,2769.8,2769.5,0.5945]
[1749688080785,3.2078,2770.0,2769.8,0.72186]
[1749688080986,0.72188,2769.8,2769.7,0.72188]
[1749688081182,4.4375,2770.0,2769.5,0.5945]
[1749688081387,0.72195,2769.5,2769.4,3.2078]
[1749688081592,0.00540989,2769.7,2769.6,0.72193]
[1749688081793,0.00540989,2769.7,2769.6,3.92973]
[1749688082597,0.72195,2769.5,2769.4,0.00540989]
[1749688082799,3.92975,2769.5,2769.4,0.00540989]
[1749688083694,3.2078,2769.5,2769.4,0.72738989]
[1749688083895,0.00540989,2769.7,2769.4,0.00540989]
[1749688084091,0.00540989,2769.7,2769.6,0.72193]
[1749688084302,0.72193,2769.6,2769.5,0.72194]
[1749688084596,0.72195,2769.5,2769.4,0.72737989]
[1749688084900,0.00540989,2769.7,2769.6,0.72193]
[1749688085399,0.00540989,2769.7,2769.4,3.27522709]
[1749688085400,0.72195,2769.5,2769.4,0.06742709]
[1749688085698,5.58595,2769.5,2769.4,0.06742709]
[1749688086398,8.79375,2769.5,2769.4,0.06742709]
[1749688087292,3.92975,2769.5,2769.4,0.06742709]
[1749688087696,8.79375,2769.5,2769.4,0.06742709]
[1749688088096,3.92975,2769.5,2769.4,0.78940709]
[1749688088399,8.79375,2769.5,2769.4,0.06742709]
[1749688088699,8.0728,2769.5,2769.4,0.78940709]
[1749688089199,0.00540989,2769.7,2769.6,0.72193]
[1749688089593,0.00540989,2769.7,2769.4,0.06742709]
[1749688089796,0.72195,2769.5,2769.4,0.06742709]
[1749688090297,0.72213,2768.8,2768.7,3.2078]
[1749688090497,0.72212,2768.9,2768.8,0.72211]
[1749688090696,0.7221,2769.0,2768.9,0.7221]
[1749688091198,0.72213,2768.8,2768.7,3.2078]
[1749688091397,0.72216,2768.7,2768.6,0.6055]
[1749688091795,6.67036,2768.8,2767.9,5.109]
[1749688091994,6.67036,2768.8,2768.2,0.72227]